fUST/lending_fUST_20241221
["ID","MTS","AMOUNT","RATE_DAILY","PERIOD"]
[346182217,1734766254545,-500.0,0.00019452,2]
[346182219,1734766254555,-500.0,0.00019452,2]
[346182222,1734766254564,-500.0,0.00019452,2]
[346182224,1734766254574,-1192.71,0.00019452,2]
[346182226,1734766254583,-611.42,0.00019452,2]
[346182228,1734766254592,-973.42,0.00019452,2]
[346182230,1734766254601,-500.0,0.00019452,2]
[346182232,1734766254610,-2631.45,0.00019452,2]
[346182234,1734766254619,-500.0,0.00019452,2]
[346182236,1734766254629,-500.0,0.00019452,2]
[346182238,1734766254637,-500.0,0.00019452,2]
[346182240,1734766254646,-500.0,0.00019452,2]
[346182242,1734766254655,-500.0,0.00019452,2]
[346182244,1734766254665,-500.0,0.00019452,2]
[346182246,1734766254673,-500.0,0.00019452,2]
[346182248,1734766254683,-500.0,0.00019452,2]
[346182250,1734766254692,-500.0,0.00019452,2]
[346182252,1734766254702,-500.0,0.00019452,2]
[346182254,1734766254713,-500.0,0.00019452,2]
[346182256,1734766254722,-590.84,0.00019452,2]
[346182258,1734766254731,-1171.07,0.00019452,2]
[346182260,1734766254740,-500.0,0.00019452,2]
[346182262,1734766254749,-500.0,0.00019452,2]
[346182264,1734766254758,-500.0,0.00019452,2]
[346182266,1734766254767,-500.0,0.00019452,2]
[346182268,1734766254776,-660.84,0.00019452,2]
[346182270,1734766254786,-500.0,0.00019452,2]
[346182272,1734766254795,-500.0,0.00019452,2]
[346182274,1734766254804,-500.0,0.00019452,2]
[346182276,1734766254813,-500.0,0.00019452,2]
[346182278,1734766254823,-1224.32,0.00019452,2]
[346182280,1734766254832,-500.0,0.00019452,2]
[346182282,1734766254841,-500.0,0.00019452,2]
[346182284,1734766254851,-500.0,0.00019452,2]
[346182286,1734766254859,-500.0,0.00019452,2]
[346182288,1734766254870,-500.0,0.00019452,2]
[346182290,1734766254879,-587.6,0.00019452,2]
[346182292,1734766254888,-500.0,0.00019452,2]
[346182294,1734766254898,-500.0,0.00019452,2]
[346182296,1734766254907,-500.0,0.00019452,2]
[346182298,1734766254916,-481.46166254,0.00019452,2]
[346182300,1734766254926,-500.0,0.00019452,2]
[346182302,1734766254936,-500.0,0.00019452,2]
[346182304,1734766254948,-500.0,0.00019452,2]
[346182306,1734766254957,-1319.25,0.00019452,2]
[346182308,1734766254967,-500.0,0.00019452,2]
[346182310,1734766254977,-500.0,0.00019452,2]
[346182312,1734766254986,-500.0,0.00019452,2]
[346182314,1734766254995,-500.0,0.00019452,2]
[346182316,1734766255004,-611.55,0.00019452,2]
[346182318,1734766255014,-500.0,0.00019452,2]
[346182320,1734766255023,-500.83002883,0.00019452,2]
[346182322,1734766255032,-500.0,0.00019452,2]
[346182324,1734766255042,-500.0,0.00019452,2]
[346182326,1734766255051,-500.0,0.00019452,2]
[346182328,1734766255060,-500.0,0.00019452,2]
[346182330,1734766255070,-500.0,0.00019452,2]
[346182332,1734766255079,-505.91603207,0.00019452,2]
[346182334,1734766255089,-503.04,0.00019452,2]
[346182336,1734766255098,-820.79,0.00019452,2]
[346182338,1734766255107,-500.0,0.00019452,2]
[346182354,1734766255245,-500.0,0.00019452,2]
[346182356,1734766255255,-417.2982931,0.00019452,2]
[346182358,1734766255265,-500.0,0.00019452,2]
[346182360,1734766255274,-500.0,0.00019452,2]
[346182362,1734766255283,-505.16698106,0.00019452,2]
[346182364,1734766255292,-500.0,0.00019452,2]
[346182366,1734766255302,-500.0,0.00019452,2]
[346182368,1734766255311,-500.0,0.00019452,2]
[346182370,1734766255320,-500.0,0.00019452,2]
[346182372,1734766255329,-500.0,0.00019452,2]
[346182374,1734766255339,-572.92294494,0.00019452,2]
[346182376,1734766255348,-1052.55,0.00019452,2]
[346182378,1734766255357,-500.0,0.00019452,2]
[346182380,1734766255366,-500.0,0.00019452,2]
[346182382,1734766255376,-500.0,0.00019452,2]
[346182384,1734766255385,-500.0,0.00019452,2]
[346182386,1734766255395,-500.0,0.00019452,2]
[346182388,1734766255404,-396.7,0.00019452,2]
[346182390,1734766255413,-500.0,0.00019452,2]
[346182392,1734766255423,-2445.69,0.00019452,2]
[346182394,1734766255433,-500.0,0.00019452,2]
[346182396,1734766255441,-557.78,0.00019452,2]
[346182398,1734766255451,-500.0,0.00019452,2]
[346182400,1734766255461,-1897.3,0.00019452,2]
[346182402,1734766255470,-500.0,0.00019452,2]
[346182404,1734766255479,-910.93,0.00019452,2]
[346182406,1734766255488,-500.0,0.00019452,2]
[346182408,1734766255498,-1220.66,0.00019452,2]
[346182410,1734766255507,-604.03,0.00019452,2]
[346182412,1734766255516,-500.0,0.00019452,2]
[346182414,1734766255526,-500.0,0.00019452,2]
[346182416,1734766255536,-500.0,0.00019452,2]
[346182418,1734766255545,-500.0,0.00019452,2]
[346182420,1734766255555,-1011.73,0.00019452,2]
[346182422,1734766255567,-500.0,0.00019452,2]
[346182424,1734766255578,-500.0,0.00019452,2]
[346182426,1734766255588,-500.0,0.00019452,2]
[346182428,1734766255598,-486.4041374,0.00019452,2]
[346182430,1734766255608,-500.0,0.00019452,2]
[346182432,1734766255618,-500.0,0.00019452,2]
[346182434,1734766255628,-5535.71,0.00019452,2]
[346182436,1734766255638,-500.0,0.00019452,2]
[346182438,1734766255648,-500.0,0.00019452,2]
[346182440,1734766255657,-3634.58,0.00019452,2]
[346182442,1734766255670,-500.0,0.00019452,2]
[346182444,1734766255680,-500.0,0.00019452,2]
[346182447,1734766255691,-500.0,0.00019452,2]
[346182449,1734766255700,-500.0,0.00019452,2]
[346182451,1734766255712,-500.0,0.00019452,2]
[346182452,1734766255722,-500.0,0.00019452,2]
[346182454,1734766255731,-500.0,0.00019452,2]
[346182457,1734766255741,-217.30518613,0.00019452,2]
[346182459,1734766255751,-458.75739584,0.00019452,2]
[346182461,1734766255760,-1418.9,0.00019452,2]
[346182463,1734766255771,-500.0,0.00019452,2]
[346182465,1734766255782,-500.0,0.00019452,2]
[346182467,1734766255792,-501.73257682,0.00019452,2]
[346182469,1734766255801,-500.0,0.00019452,2]
[346182471,1734766255810,-500.0,0.00019452,2]
[346182473,1734766255819,-500.0,0.00019452,2]
[346182475,1734766255830,-500.0,0.00019452,2]
[346182477,1734766255839,-516.1,0.00019452,2]
[346182479,1734766255849,-501.65321996,0.00019452,2]
[346182481,1734766255858,-500.0,0.00019452,2]
[346182483,1734766255867,-852.27,0.00019452,2]
[346182485,1734766255876,-500.0,0.00019452,2]
[346182487,1734766255887,-500.0,0.00019452,2]
[346182489,1734766255898,-500.0,0.00019452,2]
[346182491,1734766255908,-500.0,0.00019452,2]
[346182493,1734766255917,-500.0,0.00019452,2]
[346182495,1734766255927,-1446.26,0.00019452,2]
[346182497,1734766255936,-2981.53,0.00019452,2]
[346182499,1734766255947,-500.0,0.00019452,2]
[346182501,1734766255956,-500.0,0.00019452,2]
[346182503,1734766255968,-525.61,0.00019452,2]
[346182505,1734766255977,-355.79586828,0.00019452,2]
[346182506,1734766255987,-2285.55,0.00019452,2]
[346182509,1734766255996,-1749.05,0.00019452,2]
[346182511,1734766256005,-500.0,0.00019452,2]
[346182513,1734766256015,-500.0,0.00019452,2]
[346182515,1734766256025,-500.0,0.00019452,2]
[346182517,1734766256034,-500.0,0.00019452,2]
[346182519,1734766256043,-1890.46,0.00019452,2]
[346182521,1734766256052,-500.0,0.00019452,2]
[346182523,1734766256062,-500.0,0.00019452,2]
[346182525,1734766256071,-500.0,0.00019452,2]
[346182527,1734766256080,-2264.08,0.00019452,2]
[346182529,1734766256089,-500.0,0.00019452,2]
[346182531,1734766256099,-500.0,0.00019452,2]
[346182533,1734766256108,-629.69342329,0.00019452,2]
[346182535,1734766256117,-500.0,0.00019452,2]
[346182537,1734766256126,-482.69780557,0.00019452,2]
[346182539,1734766256135,-2620.08,0.00019452,2]
[346182541,1734766256145,-900.98,0.00019452,2]
[346182543,1734766256154,-500.0,0.00019452,2]
[346182545,1734766256163,-527.56921773,0.00019452,2]
[346182547,1734766256173,-500.0,0.00019452,2]
[346182549,1734766256182,-526.10754086,0.00019452,2]
[346182551,1734766256192,-509.46506452,0.00019452,2]
[346182553,1734766256202,-737.16,0.00019452,2]
[346182555,1734766256212,-2322.35,0.00019452,2]
[346182557,1734766256221,-500.0,0.00019452,2]
[346182559,1734766256231,-818.44,0.00019452,2]
[346182561,1734766256242,-500.0,0.00019452,2]
[346182563,1734766256251,-500.0,0.00019452,2]
[346182565,1734766256261,-1322.38,0.00019452,2]
[346182567,1734766256270,-500.0,0.00019452,2]
[346182569,1734766256280,-500.0,0.00019452,2]
[346182571,1734766256289,-500.0,0.00019452,2]
[346182573,1734766256299,-500.0,0.00019452,2]
[346182575,1734766256308,-500.0,0.00019452,2]
[346182577,1734766256317,-2649.31,0.00019452,2]
[346182579,1734766256326,-614.19,0.00019452,2]
[346182581,1734766256336,-500.0,0.00019452,2]
[346182583,1734766256345,-500.0,0.00019452,2]
[346182585,1734766256355,-500.0,0.00019452,2]
[346182587,1734766256364,-500.0,0.00019452,2]
[346182589,1734766256374,-500.0,0.00019452,2]
[346182591,1734766256383,-1573.26,0.00019452,2]
[346182593,1734766256392,-500.0,0.00019452,2]
[346182595,1734766256402,-500.0,0.00019452,2]
[346182597,1734766256412,-879.98,0.00019452,2]
[346182599,1734766256421,-1858.69,0.00019452,2]
[346182601,1734766256430,-500.0,0.00019452,2]
[346182603,1734766256440,-500.0,0.00019452,2]
[346182605,1734766256449,-1120.88,0.00019452,2]
[346182607,1734766256458,-2142.5,0.00019452,2]
[346182609,1734766256468,-500.0,0.00019452,2]
[346182610,1734766256478,-500.0,0.00019452,2]
[346182612,1734766256487,-547.19,0.00019452,2]
[346182614,1734766256497,-500.0,0.00019452,2]
[346182616,1734766256506,-500.0,0.00019452,2]
[346182618,1734766256515,-500.0,0.00019452,2]
[346182620,1734766256524,-1374.51,0.00019452,2]
[346182622,1734766256533,-500.0,0.00019452,2]
[346182624,1734766256543,-500.0,0.00019452,2]
[346182626,1734766256552,-985.27,0.00019452,2]
[346182628,1734766256561,-1598.25,0.00019452,2]
[346182630,1734766256570,-979.4,0.00019452,2]
[346182632,1734766256580,-1355.79,0.00019452,2]
[346182634,1734766256589,-500.0,0.00019452,2]
[346182636,1734766256598,-500.0,0.00019452,2]
[346182638,1734766256607,-819.4,0.00019452,2]
[346182640,1734766256617,-1316.12,0.00019452,2]
[346182642,1734766256628,-500.0,0.00019452,2]
[346182644,1734766256639,-500.0,0.00019452,2]
[346182646,1734766256650,-501.92030337,0.00019452,2]
[346182648,1734766256664,-500.0,0.00019452,2]
[346182650,1734766256680,-1598.42,0.00019452,2]
[346182652,1734766256695,-500.0,0.00019452,2]
[346182654,1734766256704,-646.59,0.00019452,2]
[346182656,1734766256715,-500.0,0.00019452,2]
[346182657,1734766256724,-500.0,0.00019452,2]
[346182659,1734766256734,-504.19014583,0.00019452,2]
[346182661,1734766256746,-309.71768548,0.00019452,2]
[346182663,1734766256756,-2637.05,0.00019452,2]
[346182665,1734766256766,-500.0,0.00019452,2]
[346182667,1734766256776,-947.44,0.00019452,2]
[346182669,1734766256785,-7295.97,0.00019452,2]
[346182671,1734766256795,-902.13,0.00019452,2]
[346182673,1734766256804,-500.0,0.00019452,2]
[346182675,1734766256814,-500.0,0.00019452,2]
[346182677,1734766256823,-500.0,0.00019452,2]
[346182679,1734766256833,-500.0,0.00019452,2]
[346182681,1734766256843,-516.23252101,0.00019452,2]
[346182683,1734766256853,-1655.77,0.00019452,2]
[346182685,1734766256862,-501.26592717,0.00019452,2]
[346182687,1734766256871,-960.44,0.00019452,2]
[346182689,1734766256880,-500.0,0.00019452,2]
[346182691,1734766256890,-500.0,0.00019452,2]
[346182693,1734766256899,-506.68698578,0.00019452,2]
[346182695,1734766256908,-1151.66,0.00019452,2]
[346182697,1734766256917,-551.9,0.00019452,2]
[346182699,1734766256927,-500.0,0.00019452,2]
[346182701,1734766256936,-500.0,0.00019452,2]
[346182703,1734766256949,-500.0,0.00019452,2]
[346182705,1734766256957,-917.4,0.00019452,2]
[346182707,1734766256968,-500.0,0.00019452,2]
[346182709,1734766256979,-3037.48,0.00019452,2]
[346182711,1734766256989,-1814.78,0.00019452,2]
[346182713,1734766256998,-500.0,0.00019452,2]
[346182715,1734766257008,-1912.69,0.00019452,2]
[346182717,1734766257017,-717.36,0.00019452,2]
[346182719,1734766257027,-500.0,0.00019452,2]
[346182721,1734766257037,-507.01,0.00019452,2]
[346182723,1734766257046,-500.0,0.00019452,2]
[346182725,1734766257056,-500.0,0.00019452,2]
[346182727,1734766257065,-500.0,0.00019452,2]
[346182728,1734766257074,-3189.61,0.00019452,2]
[346182730,1734766257083,-500.0,0.00019452,2]
[346182732,1734766257092,-551.41,0.00019452,2]
[346182734,1734766257103,-500.0,0.00019452,2]
[346182736,1734766257113,-500.0,0.00019452,2]
[346182738,1734766257122,-500.0,0.00019452,2]
[346182740,1734766257131,-562.01,0.00019452,2]
[346182742,1734766257141,-896.28,0.00019452,2]
[346182744,1734766257150,-500.0,0.00019452,2]
[346182746,1734766257160,-1362.02,0.00019452,2]
[346182748,1734766257169,-3466.76,0.00019452,2]
[346182750,1734766257178,-502.65176382,0.00019452,2]
[346182752,1734766257187,-100946.24,0.00019452,2]
[346182754,1734766257197,-259.22838164,0.00019452,2]
[346182756,1734766257206,-500.0,0.00019452,2]
[346182758,1734766257217,-886.7,0.00019452,2]
[346182760,1734766257226,-3104.52,0.00019452,2]
[346182762,1734766257235,-500.0,0.00019452,2]
[346182764,1734766257244,-561.76,0.00019452,2]
[346182766,1734766257254,-500.0,0.00019452,2]
[346182768,1734766257263,-500.0,0.00019452,2]
[346182770,1734766257273,-8375.85,0.00019452,2]
[346182772,1734766257283,-945.68,0.00019452,2]
[346182774,1734766257292,-2624.38,0.00019452,2]
[346182776,1734766257302,-500.0,0.00019452,2]
[346182778,1734766257311,-29212.72,0.00019452,2]
[346182780,1734766257320,-527.24,0.00019452,2]
[346182794,1734766257446,-535.73,0.00019452,2]
[346182796,1734766257455,-1103.22,0.00019452,2]
[346182798,1734766257466,-541.41,0.00019452,2]
[346182800,1734766257476,-17385.52,0.00019452,2]
[346182802,1734766257485,-3813.94,0.00019452,2]
[346182804,1734766257495,-500.0,0.00019452,2]
[346182806,1734766257504,-500.0,0.00019452,2]
[346182808,1734766257513,-1344.44,0.00019452,2]
[346182810,1734766257522,-508.31,0.00019452,2]
[346182811,1734766257532,-646.8,0.00019452,2]
[346182813,1734766257541,-510.68,0.00019452,2]
[346182815,1734766257550,-500.0,0.00019452,2]
[346182817,1734766257560,-500.0,0.00019452,2]
[346182819,1734766257569,-500.0,0.00019452,2]
[346182822,1734766257579,-3660.71,0.00019452,2]
[346182823,1734766257589,-26783.63,0.00019452,2]
[346182825,1734766257598,-500.0,0.00019452,2]
[346182827,1734766257608,-500.0,0.00019452,2]
[346182829,1734766257618,-852.33,0.00019452,2]
[346182831,1734766257628,-4384.63,0.00019452,2]
[346182833,1734766257638,-535.69,0.00019452,2]
[346182835,1734766257648,-500.0,0.00019452,2]
[346182837,1734766257657,-13853.89,0.00019452,2]
[346182839,1734766257666,-500.0,0.00019452,2]
[346182841,1734766257676,-264.26910547,0.00019452,2]
[346182843,1734766257685,-1941.4,0.00019452,2]
[346182845,1734766257694,-500.0,0.00019452,2]
[346182847,1734766257703,-2467.21,0.00019452,2]
[346182849,1734766257716,-500.0,0.00019452,2]
[346182851,1734766257726,-500.0,0.00019452,2]
[346182853,1734766257735,-500.0,0.00019452,2]
[346182855,1734766257745,-997.65,0.00019452,2]
[346182857,1734766257754,-500.0,0.00019452,2]
[346182859,1734766257763,-500.0,0.00019452,2]
[346182861,1734766257773,-500.0,0.00019452,2]
[346182863,1734766257782,-500.0,0.00019452,2]
[346182865,1734766257791,-500.0,0.00019452,2]
[346182867,1734766257800,-500.0,0.00019452,2]
[346182869,1734766257809,-500.0,0.00019452,2]
[346182871,1734766257818,-500.0,0.00019452,2]
[346182873,1734766257828,-500.0,0.00019452,2]
[346182875,1734766257838,-500.0,0.00019452,2]
[346182876,1734766257847,-570.86364537,0.00019452,2]
[346182878,1734766257857,-4150.71,0.00019452,2]
[346182880,1734766257867,-1357.37,0.00019452,2]
[346182882,1734766257875,-500.0,0.00019452,2]
[346182884,1734766257885,-500.0,0.00019452,2]
[346182886,1734766257895,-637.02,0.00019452,2]
[346182888,1734766257905,-849.58,0.00019452,2]
[346182890,1734766257914,-500.0,0.00019452,2]
[346182892,1734766257923,-1012.45,0.00019452,2]
[346182894,1734766257934,-500.0,0.00019452,2]
[346182896,1734766257943,-500.0,0.00019452,2]
[346182898,1734766257955,-500.0,0.00019452,2]
[346182900,1734766257967,-162.31597202,0.00019452,2]
[346182902,1734766257976,-500.0,0.00019452,2]
[346182904,1734766257985,-629.03,0.00019452,2]
[346182906,1734766257995,-650.1,0.00019452,2]
[346182908,1734766258004,-500.0,0.00019452,2]
[346182910,1734766258013,-1492.05,0.00019452,2]
[346182912,1734766258023,-2360.27,0.00019452,2]
[346182914,1734766258033,-500.0,0.00019452,2]
[346182916,1734766258042,-500.0,0.00019452,2]
[346182918,1734766258051,-755.8,0.00019452,2]
[346182920,1734766258060,-607.6,0.00019452,2]
[346182922,1734766258069,-500.0,0.00019452,2]
[346182924,1734766258078,-500.0,0.00019452,2]
[346182926,1734766258089,-538.37551732,0.00019452,2]
[346182928,1734766258098,-500.0,0.00019452,2]
[346182930,1734766258108,-500.0,0.00019452,2]
[346182932,1734766258117,-500.0,0.00019452,2]
[346182934,1734766258126,-500.0,0.00019452,2]
[346182936,1734766258135,-1601.35,0.00019452,2]
[346182937,1734766258144,-500.0,0.00019452,2]
[346182939,1734766258154,-7813.26,0.00019452,2]
[346182941,1734766258163,-500.0,0.00019452,2]
[346182943,1734766258172,-604.61,0.00019452,2]
[346182945,1734766258181,-500.0,0.00019452,2]
[346182947,1734766258190,-500.0,0.00019452,2]
[346182949,1734766258199,-500.0,0.00019452,2]
[346182951,1734766258210,-645.61,0.00019452,2]
[346182953,1734766258219,-5541.8,0.00019452,2]
[346182955,1734766258228,-500.0,0.00019452,2]
[346182957,1734766258238,-500.0,0.00019452,2]
[346182959,1734766258247,-500.0,0.00019452,2]
[346182961,1734766258256,-500.0,0.00019452,2]
[346182963,1734766258265,-929.56,0.00019452,2]
[346182964,1734766258275,-500.0,0.00019452,2]
[346182966,1734766258284,-1076.03,0.00019452,2]
[346182968,1734766258293,-500.0,0.00019452,2]
[346182970,1734766258303,-427.87977021,0.00019452,2]
[346182972,1734766258312,-744.77,0.00019452,2]
[346182974,1734766258322,-2007.25,0.00019452,2]
[346182976,1734766258332,-500.0,0.00019452,2]
[346182978,1734766258341,-500.0,0.00019452,2]
[346182980,1734766258351,-866.48,0.00019452,2]
[346182982,1734766258360,-500.0,0.00019452,2]
[346182984,1734766258369,-540.81,0.00019452,2]
[346182986,1734766258379,-789.05,0.00019452,2]
[346182988,1734766258388,-500.0,0.00019452,2]
[346182990,1734766258397,-500.0,0.00019452,2]
[346182992,1734766258408,-1308.2,0.00019452,2]
[346182994,1734766258417,-3205.29,0.00019452,2]
[346182996,1734766258427,-500.0,0.00019452,2]
[346182998,1734766258436,-500.0,0.00019452,2]
[346183000,1734766258445,-500.0,0.00019452,2]
[346183002,1734766258454,-8477.26,0.00019452,2]
[346183004,1734766258465,-500.0,0.00019452,2]
[346183006,1734766258474,-500.0,0.00019452,2]
[346183008,1734766258483,-2047.5,0.00019452,2]
[346183010,1734766258493,-1270.78,0.00019452,2]
[346183012,1734766258502,-657.94,0.00019452,2]
[346183014,1734766258512,-500.0,0.00019452,2]
[346183016,1734766258521,-500.0,0.00019452,2]
[346183018,1734766258530,-500.0,0.00019452,2]
[346183020,1734766258540,-1938.86,0.00019452,2]
[346183022,1734766258549,-500.0,0.00019452,2]
[346183024,1734766258558,-5730.57,0.00019452,2]
[346183026,1734766258567,-7586.07,0.00019452,2]
[346183028,1734766258576,-527.3,0.00019452,2]
[346183029,1734766258585,-500.0,0.00019452,2]
[346183031,1734766258595,-2009.69,0.00019452,2]
[346183033,1734766258604,-500.0,0.00019452,2]
[346183035,1734766258614,-500.0,0.00019452,2]
[346183037,1734766258623,-503.81680253,0.00019452,2]
[346183039,1734766258632,-500.0,0.00019452,2]
[346183040,1734766258642,-500.0,0.00019452,2]
[346183041,1734766258651,-500.0,0.00019452,2]
[346183042,1734766258660,-502.720398,0.00019452,2]
[346183043,1734766258670,-500.0,0.00019452,2]
[346183044,1734766258680,-500.0,0.00019452,2]
[346183045,1734766258689,-4118.07,0.00019452,2]
[346183046,1734766258699,-500.0,0.00019452,2]
[346183047,1734766258711,-500.0,0.00019452,2]
[346183048,1734766258721,-500.0,0.00019452,2]
[346183049,1734766258730,-500.0,0.00019452,2]
[346183050,1734766258740,-2792.66,0.00019452,2]
[346183051,1734766258749,-500.0,0.00019452,2]
[346183052,1734766258759,-2997.31,0.00019452,2]
[346183053,1734766258769,-500.0,0.00019452,2]
[346183054,1734766258779,-500.0,0.00019452,2]
[346183055,1734766258789,-500.0,0.00019452,2]
[346183056,1734766258799,-1508.98,0.00019452,2]
[346183057,1734766258810,-1374.38,0.00019452,2]
[346183058,1734766258819,-1022.14,0.00019452,2]
[346183059,1734766258829,-500.0,0.00019452,2]
[346183060,1734766258839,-500.0,0.00019452,2]
[346183061,1734766258848,-500.0,0.00019452,2]
[346183062,1734766258858,-2151.62,0.00019452,2]
[346183063,1734766258867,-500.0,0.00019452,2]
[346183064,1734766258876,-720.84,0.00019452,2]
[346183066,1734766258887,-3494.71,0.00019452,2]
[346183067,1734766258897,-1266.14,0.00019452,2]
[346183069,1734766258906,-500.0,0.00019452,2]
[346183071,1734766258916,-500.0,0.00019452,2]
[346183073,1734766258925,-500.0,0.00019452,2]
[346183075,1734766258935,-570.24,0.00019452,2]
[346183077,1734766258947,-500.0,0.00019452,2]
[346183079,1734766258956,-500.0,0.00019452,2]
[346183080,1734766258968,-500.0,0.00019452,2]
[346183082,1734766258979,-500.0,0.00019473,2]
[346183085,1734766258988,-500.0,0.00019473,2]
[346183086,1734766258998,-500.0,0.00019473,2]
[346183089,1734766259008,-159.19340222,0.00019473,2]
[346183091,1734766259018,-500.0,0.00019473,2]
[346183093,1734766259028,-500.0,0.00019473,2]
[346183094,1734766259039,-500.0,0.00019473,2]
[346183096,1734766259049,-500.0,0.00019473,2]
[346183098,1734766259058,-500.0,0.00019473,2]
[346183100,1734766259068,-500.0,0.00019473,2]
[346183103,1734766259078,-500.0,0.00019473,2]
[346183104,1734766259089,-500.0,0.00019473,2]
[346183106,1734766259099,-1143.850371,0.000195,2]
[346183108,1734766259109,-2346.22980894,0.00019513,2]
[346183110,1734766259118,-160.0,0.00019523,2]
[346183112,1734766259128,-160.0,0.00019523,2]
[346183114,1734766259137,-160.0,0.00019523,2]
[346183116,1734766259147,-160.0,0.00019523,2]
[346183118,1734766259156,-160.24,0.00019523,2]
[346183120,1734766259166,-159.0,0.00019562,2]
[346183122,1734766259175,-159.0,0.00019562,2]
[346183124,1734766259183,-159.0,0.00019562,2]
[346183126,1734766259193,-159.0,0.00019562,2]
[346183128,1734766259203,-159.0,0.00019562,2]
[346183130,1734766259214,-159.0,0.00019562,2]
[346183132,1734766259224,-159.0,0.00019562,2]
[346183134,1734766259233,-159.0,0.00019562,2]
[346183136,1734766259243,-159.0,0.00019562,2]
[346183138,1734766259252,-159.0,0.00019562,2]
[346183140,1734766259262,-159.0,0.00019562,2]
[346183142,1734766259271,-159.0,0.00019562,2]
[346183144,1734766259286,-159.0,0.00019562,2]
[346183146,1734766259295,-159.0,0.00019562,2]
[346183148,1734766259304,-159.0,0.00019562,2]
[346183150,1734766259313,-159.0,0.00019562,2]
[346183152,1734766259322,-159.0,0.00019562,2]
[346183154,1734766259332,-162.35,0.00019562,2]
[346183169,1734766259342,-467.04440721,0.00019614,2]
[346183171,1734766259469,-150.743,0.00019664,2]
[346183173,1734766259479,-181.728,0.00019664,2]
[346183175,1734766259488,-500.0,0.00019716,2]
[346183177,1734766259498,-500.0,0.0001972,2]
[346183179,1734766259508,-1000.0,0.00019721,2]
[346183181,1734766259517,-1000.0,0.00019721,2]
[346183183,1734766259527,-755.82267219,0.00019721,2]
[346183185,1734766259536,-274.61600415,0.00019725,2]
[346183187,1734766259545,-1151613.30217133,0.00019725,5]
[346184973,1734766291556,4465.0,0.0001725,2]
[346184977,1734766528736,266.3334,0.00013973,2]
[346184978,1734766810349,187.478852,0.00017003,2]
[346184981,1734766974326,2000.0,0.00025,120]
[346185009,1734767299641,475.7585529,0.00017224,2]
[346185010,1734767390466,42.9108726,0.00013973,2]
[346185011,1734767390494,227.2597894,0.00013973,2]
[346185012,1734767410165,199.69,0.00017,2]
[346185055,1734767432735,-300.0,0.0001726,2]
[346185057,1734767432745,-291.12396601,0.0001726,2]
[346185059,1734767432757,-8.87603399,0.0001726,2]
[346185061,1734767432766,-500.0,0.00017261,2]
[346185063,1734767432775,-500.0,0.00017261,2]
[346185065,1734767432784,-100700.07217645,0.00017261,2]
[346185067,1734767432793,-500.0,0.00017926,2]
[346185069,1734767432803,-1786.91083204,0.00017955,2]
[346185092,1734767432812,-27551.24625005,0.00018055,2]